{"text_format":"3","workbook":"xlsx","n_sheets":2,"sheets":["ZAČÁTEK","ROČNÍ ČASOVÝ ROZVRH"],"not_rendered":{"defined_names":2},"read":"whole","date_system":"1900"}

{"sheet":"ZAČÁTEK","index":0,"n_rows":8,"n_cols":2,"rows_kept":8}
[null,"INFORMACE O TÉTO ŠABLONĚ"]
[null,"S tímto časovým výkazem zaměstnance můžete sledovat odpracované hodiny po dnech, týdnech, měsících a rocích."]
[null,"Vyplňte základní informace, jako jsou jméno zaměstnance, jméno nadřízeného, e-mailová adresa a telefonní číslo. "]
[null,"Hodiny přidávejte do tabulek pro jednotlivé měsíce. Pro každý den můžete zaznamenávat hodiny normální pracovní doby a přesčasové hodiny do samostatných sloupců. "]
[null,"Celkový počet hodin, normální pracovní doba a přesčasové hodiny se počítají automaticky. "]
[null,"Poznámky:"]
[null,"Další pokyny jsou k dispozici na listu ROČNÍ ČASOVÝ ROZVRH ve sloupci A. Tento text je záměrně skrytý. Pokud tento text chcete odebrat, vyberte sloupec A a stiskněte klávesu ODSTRANIT. Pokud tento text chcete zobrazit, vyberte sloupec A a změňte barvu písma. "]
[null,"Další informace o tabulkách můžete získat tak, že v tabulce stisknete klávesu SHIFT a potom F10, vyberete možnost TABULKA a pak vyberete ALTERNATIVNÍ TEXT."]

{"sheet":"ROČNÍ ČASOVÝ ROZVRH","index":1,"n_rows":132,"n_cols":15,"rows_kept":132,"merged":[[0,1,0,2],[0,4,0,14],[10,6,10,7],[21,6,21,7],[32,6,32,7],[33,4,33,14],[43,6,43,7],[54,6,54,7],[65,6,65,7],[66,4,66,14],[76,6,76,7],[87,6,87,7],[98,6,98,7],[99,4,99,14],[109,6,109,7],[120,6,120,7],[131,6,131,7]]}
["Na tomto listu můžete vytvořit denní, týdenní, měsíční nebo roční časový rozvrh zaměstnance. \nV buňkách v tomto sloupci jsou užitečné pokyny k tomu, jak tento sešit používat. Začněte stisknutím šipky dolů.\nV buňce napravo je název tohoto listu a v buňce E1 je nadpis pro čtvrtletí od ledna do března.","ČASOVÝ VÝKAZ \nZAMĚSTNANCE",null,null,"Leden, únor, březen      Časový výkaz zaměstnance: denní, týdenní, měsíční, roční"]
["Do buňky C2 zadejte jméno zaměstnance. Do tabulky pro leden, která začíná v buňce E2, zadávejte hodiny normální pracovní doby a přesčasů.","Jméno zaměstnance:",null,null,"Leden","Týden 1","Přesčas","Týden 2","Přesčas  ","Týden 3","Přesčas   ","Týden 4","Přesčas    ","Týden 5","Přesčas     "]
["Do buňky C3 zadejte jméno nadřízeného.","Nadřízený:",null,null,"Pondělí",{"v":8,"d":"8.0"}]
["Do buňky C4 zadejte e-mailovou adresu.","E-mail:",null,null,"Úterý",{"v":8,"d":"8.0"},{"v":2,"d":"2.0"}]
["Do buňky C5 zadejte telefonní číslo. Další pokyn je v buňce A9.","Telefon:",null,null,"Středa"]
[{"$nulls":4},"Čtvrtek"]
[{"$nulls":4},"Pátek"]
[{"$nulls":4},"Sobota"]
["V buňce C9 se automaticky počítá součet hodin normální pracovní doby za rok.","Hodiny normální pracovní doby:",{"$f":"NormalniHod","v":31},null,"Neděle"]
["V buňce C10 se automaticky počítá součet přesčasových hodin za rok.","Přesčasové hodiny:",{"$f":"Prescas_hod","v":4},null,"Celkový počet hodin za týden",{"$f":"SUM(F3:F9)","v":{"v":16,"d":"16.0"}},{"v":2,"d":"2.0"},{"v":0,"d":"0.0"},{"v":0,"d":"0.0"},{"v":0,"d":"0.0"},{"v":0,"d":"0.0"},{"v":0,"d":"0.0"},{"v":0,"d":"0.0"},{"v":0,"d":"0.0"},{"v":0,"d":"0.0"}]
["V buňce C11 se automaticky počítá celkový součet hodin za rok. V buňce F11 se automaticky počítá součet hodin normální pracovní doby a v buňce I11 součet přesčasových hodin za leden. Další pokyn je v buňce A13.","Celkem",{"$f":"NormalniHod+Prescas_hod","v":35},null,{"$f":"TEXT(DATEVALUE(Leden[[#Headers],[Leden]]&\"  \"&YEAR(TODAY())),\"mmm.\")&\" celkem: Hodiny normální pracovní doby\"","v":"I. celkem: Hodiny normální pracovní doby"},{"$f":"SUM(Leden[Týden 1],Leden[Týden 2],Leden[Týden 3],Leden[Týden 4],Leden[Týden 5])","v":{"v":16,"d":"16.0"}},{"$f":"TEXT(DATEVALUE(Leden[[#Headers],[Leden]]&\"  \"&YEAR(TODAY())),\"mmm.\")&\" celkem: Přesčas\"","v":"I. celkem: Přesčas"},null,{"$f":"SUM(Leden[Přesčas],Leden[[Přesčas  ]],Leden[[Přesčas   ]],Leden[[Přesčas    ]],Leden[[Přesčas     ]])","v":{"v":2,"d":"2.0"}}]
[]
["Do tabulky pro únor, která začíná v buňce E13, zadávejte hodiny normální pracovní doby a přesčasů. Další pokyn je v buňce A22.",{"$nulls":3},"Únor","Týden 1","Přesčas","Týden 2","Přesčas  ","Týden 3","Přesčas   ","Týden 4","Přesčas    ","Týden 5","Přesčas     "]
[{"$nulls":4},"Pondělí",{"v":8,"d":"8.0"}]
[{"$nulls":4},"Úterý",{"v":7,"d":"7.0"},{"v":2,"d":"2.0"}]
[{"$nulls":4},"Středa"]
[{"$nulls":4},"Čtvrtek"]
[{"$nulls":4},"Pátek"]
[{"$nulls":4},"Sobota"]
[{"$nulls":4},"Neděle"]
[{"$nulls":4},"Celkový počet hodin za týden",{"$f":"SUM(F14:F20)","v":{"v":15,"d":"15.0"}},{"v":2,"d":"2.0"},{"v":0,"d":"0.0"},{"v":0,"d":"0.0"},{"v":0,"d":"0.0"},{"v":0,"d":"0.0"},{"v":0,"d":"0.0"},{"v":0,"d":"0.0"},{"v":0,"d":"0.0"},{"v":0,"d":"0.0"}]
["V buňce F22 se automaticky počítá součet hodin normální pracovní doby a v buňce I22 součet přesčasových hodin za únor. Další pokyn je v buňce A24.",{"$nulls":3},{"$f":"TEXT(DATEVALUE(Unor[[#Headers],[Únor]]&\"  \"&YEAR(TODAY())),\"mmm.\")&\" celkem: Hodiny normální pracovní doby\"","v":"II. celkem: Hodiny normální pracovní doby"},{"$f":"SUM(Unor[Týden 1],Unor[Týden 2],Unor[Týden 3],Unor[Týden 4],Unor[Týden 5])","v":{"v":15,"d":"15.0"}},{"$f":"TEXT(DATEVALUE(Unor[[#Headers],[Únor]]&\" \"&YEAR(TODAY())),\"mmm.\")&\" celkem: Přesčas\"","v":"II. celkem: Přesčas"},null,{"$f":"SUM(Unor[Přesčas],Unor[[Přesčas  ]],Unor[[Přesčas   ]],Unor[[Přesčas    ]],Unor[[Přesčas     ]])","v":{"v":2,"d":"2.0"}}]
[]
["Do tabulky pro březen, která začíná v buňce E24, zadávejte hodiny normální pracovní doby a přesčasů. Další pokyn je v buňce A33.",{"$nulls":3},"Březen","Týden 1","Přesčas","Týden 2","Přesčas ","Týden 3","Přesčas  ","Týden 4","Přesčas    ","Týden 5","Přesčas     "]
[{"$nulls":4},"Pondělí"]
[{"$nulls":4},"Úterý"]
[{"$nulls":4},"Středa"]
[{"$nulls":4},"Čtvrtek"]
[{"$nulls":4},"Pátek"]
[{"$nulls":4},"Sobota"]
[{"$nulls":4},"Neděle"]
[{"$nulls":4},"Celkový počet hodin za týden",{"$f":"SUM(F25:F31)","v":{"v":0,"d":"0.0"}},{"v":0,"d":"0.0"},{"v":0,"d":"0.0"},{"v":0,"d":"0.0"},{"v":0,"d":"0.0"},{"v":0,"d":"0.0"},{"v":0,"d":"0.0"},{"v":0,"d":"0.0"},{"v":0,"d":"0.0"},{"v":0,"d":"0.0"}]
["V buňce F33 se automaticky počítá součet hodin normální pracovní doby a v buňce I33 součet přesčasových hodin za březen.",{"$nulls":3},{"$f":"TEXT(DATEVALUE(Brezen[[#Headers],[Březen]]&\" \"&YEAR(TODAY())),\"mmm.\")&\" celkem: Hodiny normální pracovní doby\"","v":"III. celkem: Hodiny normální pracovní doby"},{"$f":"SUM(Brezen[Týden 1],Brezen[Týden 2],Brezen[Týden 3],Brezen[Týden 4],Brezen[Týden 5])","v":{"v":0,"d":"0.0"}},{"$f":"TEXT(DATEVALUE(Brezen[[#Headers],[Březen]]&\" \"&YEAR(TODAY())),\"mmm.\")&\" celkem: Přesčas\"","v":"III. celkem: Přesčas"},null,{"$f":"SUM(Brezen[Přesčas],Brezen[[Přesčas ]],Brezen[[Přesčas  ]],Brezen[[Přesčas    ]],Brezen[[Přesčas     ]])","v":{"v":0,"d":"0.0"}}]
["V buňce E34 je nadpis pro druhé čtvrtletí od dubna do června. ",{"$nulls":3},"Duben, květen, červen      Časový výkaz zaměstnance: denní, týdenní, měsíční, roční"]
["Do tabulky pro duben, která začíná v buňce E35, zadávejte hodiny normální pracovní doby a přesčasů. Další pokyn je v buňce A44.",{"$nulls":3},"Duben","Týden 1","Přesčas","Týden 2","Přesčas  ","Týden 3","Přesčas   ","Týden 4","Přesčas    ","Týden 5","Přesčas     "]
[{"$nulls":4},"Pondělí"]
[{"$nulls":4},"Úterý"]
[{"$nulls":4},"Středa"]
[{"$nulls":4},"Čtvrtek"]
[{"$nulls":4},"Pátek"]
[{"$nulls":4},"Sobota"]
[{"$nulls":4},"Neděle"]
[{"$nulls":4},"Celkový počet hodin za týden",{"$f":"SUM(F36:F42)","v":{"v":0,"d":"0.0"}},{"v":0,"d":"0.0"},{"v":0,"d":"0.0"},{"v":0,"d":"0.0"},{"v":0,"d":"0.0"},{"v":0,"d":"0.0"},{"v":0,"d":"0.0"},{"v":0,"d":"0.0"},{"v":0,"d":"0.0"},{"v":0,"d":"0.0"}]
["V buňce F44 se automaticky počítá součet hodin normální pracovní doby a v buňce I44 součet přesčasových hodin za duben. Další pokyn je v buňce A46.",{"$nulls":3},{"$f":"TEXT(DATEVALUE(Duben[[#Headers],[Duben]]&\" \"&YEAR(TODAY())),\"mmm.\")&\" celkem: Hodiny normální pracovní doby\"","v":"IV. celkem: Hodiny normální pracovní doby"},{"$f":"SUM(Duben[Týden 1],Duben[Týden 2],Duben[Týden 3],Duben[Týden 4],Duben[Týden 5])","v":{"v":0,"d":"0.0"}},{"$f":"TEXT(DATEVALUE(Duben[[#Headers],[Duben]]&\" \"&YEAR(TODAY())),\"mmm.\")&\" celkem: Přesčas\"","v":"IV. celkem: Přesčas"},null,{"$f":"SUM(Duben[Přesčas],Duben[[Přesčas  ]],Duben[[Přesčas   ]],Duben[[Přesčas    ]],Duben[[Přesčas     ]])","v":{"v":0,"d":"0.0"}}]
[]
["Do tabulky pro květen, která začíná v buňce E46, zadávejte hodiny normální pracovní doby a přesčasů. Další pokyn je v buňce A55.",{"$nulls":3},"Květen","Týden 1","Přesčas","Týden 2","Přesčas  ","Týden 3","Přesčas   ","Týden 4","Přesčas    ","Týden 5","Přesčas     "]
[{"$nulls":4},"Pondělí"]
[{"$nulls":4},"Úterý"]
[{"$nulls":4},"Středa"]
[{"$nulls":4},"Čtvrtek"]
[{"$nulls":4},"Pátek"]
[{"$nulls":4},"Sobota"]
[{"$nulls":4},"Neděle"]
[{"$nulls":4},"Celkový počet hodin za týden",{"$f":"SUM(F47:F53)","v":{"v":0,"d":"0.0"}},{"v":0,"d":"0.0"},{"v":0,"d":"0.0"},{"v":0,"d":"0.0"},{"v":0,"d":"0.0"},{"v":0,"d":"0.0"},{"v":0,"d":"0.0"},{"v":0,"d":"0.0"},{"v":0,"d":"0.0"},{"v":0,"d":"0.0"}]
["V buňce F55 se automaticky počítá součet hodin normální pracovní doby a v buňce I55 součet přesčasových hodin za květen. Další pokyn je v buňce A57.",{"$nulls":3},{"$f":"TEXT(DATEVALUE(Kveten[[#Headers],[Květen]]&\" \"&YEAR(TODAY())),\"mmm.\")&\" celkem: Hodiny normální pracovní doby\"","v":"V. celkem: Hodiny normální pracovní doby"},{"$f":"SUM(Kveten[Týden 1],Kveten[Týden 2],Kveten[Týden 3],Kveten[Týden 4],Kveten[Týden 5])","v":{"v":0,"d":"0.0"}},{"$f":"TEXT(DATEVALUE(Kveten[[#Headers],[Květen]]&\" \"&YEAR(TODAY())),\"mmm.\")&\" celkem: Přesčas\"","v":"V. celkem: Přesčas"},null,{"$f":"SUM(Kveten[Přesčas],Kveten[[Přesčas  ]],Kveten[[Přesčas   ]],Kveten[[Přesčas    ]],Kveten[[Přesčas     ]])","v":{"v":0,"d":"0.0"}}]
[]
["Do tabulky pro červen, která začíná v buňce E57, zadávejte hodiny normální pracovní doby a přesčasů. Další pokyn je v buňce A66.",{"$nulls":3},"Červen","Týden 1","Přesčas","Týden 2","Přesčas  ","Týden 3","Přesčas   ","Týden 4","Přesčas    ","Týden 5","Přesčas     "]
[{"$nulls":4},"Pondělí"]
[{"$nulls":4},"Úterý"]
[{"$nulls":4},"Středa"]
[{"$nulls":4},"Čtvrtek"]
[{"$nulls":4},"Pátek"]
[{"$nulls":4},"Sobota"]
[{"$nulls":4},"Neděle"]
[{"$nulls":4},"Celkový počet hodin za týden",{"$f":"SUM(F58:F64)","v":{"v":0,"d":"0.0"}},{"v":0,"d":"0.0"},{"v":0,"d":"0.0"},{"v":0,"d":"0.0"},{"v":0,"d":"0.0"},{"v":0,"d":"0.0"},{"v":0,"d":"0.0"},{"v":0,"d":"0.0"},{"v":0,"d":"0.0"},{"v":0,"d":"0.0"}]
["V buňce F66 se automaticky počítá součet hodin normální pracovní doby a v buňce I66 součet přesčasových hodin za červen.",{"$nulls":3},{"$f":"TEXT(DATEVALUE(Cerven[[#Headers],[Červen]]&\" \"&YEAR(TODAY())),\"mmm.\")&\" celkem: Hodiny normální pracovní doby\"","v":"VI. celkem: Hodiny normální pracovní doby"},{"$f":"SUM(Cerven[Týden 1],Cerven[Týden 2],Cerven[Týden 3],Cerven[Týden 4],Cerven[Týden 5])","v":{"v":0,"d":"0.0"}},{"$f":"TEXT(DATEVALUE(Cerven[[#Headers],[Červen]]&\" \"&YEAR(TODAY())),\"mmm.\")&\" celkem: Přesčas\"","v":"VI. celkem: Přesčas"},null,{"$f":"SUM(Cerven[Přesčas],Cerven[[Přesčas  ]],Cerven[[Přesčas   ]],Cerven[[Přesčas    ]],Cerven[[Přesčas     ]])","v":{"v":0,"d":"0.0"}}]
["V buňce E67 je nadpis pro třetí čtvrtletí od července do září. ",{"$nulls":3},"Červenec, srpen, září      Časový výkaz zaměstnance: denní, týdenní, měsíční, roční"]
["Do tabulky pro červenec, která začíná v buňce E68, zadávejte hodiny normální pracovní doby a přesčasů. Další pokyn je v buňce A77.",{"$nulls":3},"Červenec","Týden 1","Přesčas","Týden 2","Přesčas ","Týden 3","Přesčas  ","Týden 4","Přesčas   ","Týden 5","Přesčas     "]
[{"$nulls":4},"Pondělí"]
[{"$nulls":4},"Úterý"]
[{"$nulls":4},"Středa"]
[{"$nulls":4},"Čtvrtek"]
[{"$nulls":4},"Pátek"]
[{"$nulls":4},"Sobota"]
[{"$nulls":4},"Neděle"]
[{"$nulls":4},"Celkový počet hodin za týden",{"$f":"SUM(F69:F75)","v":{"v":0,"d":"0.0"}},{"v":0,"d":"0.0"},{"v":0,"d":"0.0"},{"v":0,"d":"0.0"},{"v":0,"d":"0.0"},{"v":0,"d":"0.0"},{"v":0,"d":"0.0"},{"v":0,"d":"0.0"},{"v":0,"d":"0.0"},{"v":0,"d":"0.0"}]
["V buňce F77 se automaticky počítá součet hodin normální pracovní doby a v buňce I77 součet přesčasových hodin za červenec. Další pokyn je v buňce A79.",{"$nulls":3},{"$f":"TEXT(DATEVALUE(Cervenec[[#Headers],[Červenec]]&\" \"&YEAR(TODAY())),\"mmm.\")&\" celkem: Hodiny normální pracovní doby\"","v":"VII. celkem: Hodiny normální pracovní doby"},{"$f":"SUM(Cervenec[Týden 1],Cervenec[Týden 2],Cervenec[Týden 3],Cervenec[Týden 4],Cervenec[Týden 5])","v":{"v":0,"d":"0.0"}},{"$f":"TEXT(DATEVALUE(Cervenec[[#Headers],[Červenec]]&\" \"&YEAR(TODAY())),\"mmm.\")&\" celkem: Přesčas\"","v":"VII. celkem: Přesčas"},null,{"$f":"SUM(Cervenec[Přesčas],Cervenec[[Přesčas ]],Cervenec[[Přesčas  ]],Cervenec[[Přesčas   ]],Cervenec[[Přesčas     ]])","v":{"v":0,"d":"0.0"}}]
[]
["Do tabulky pro srpen, která začíná v buňce E79, zadávejte hodiny normální pracovní doby a přesčasů. Další pokyn je v buňce A88.",{"$nulls":3},"Srpen","Týden 1","Přesčas","Týden 2","Přesčas ","Týden 3","Přesčas   ","Týden 4","Přesčas  ","Týden 5","Přesčas    "]
[{"$nulls":4},"Pondělí"]
[{"$nulls":4},"Úterý"]
[{"$nulls":4},"Středa"]
[{"$nulls":4},"Čtvrtek"]
[{"$nulls":4},"Pátek"]
[{"$nulls":4},"Sobota"]
[{"$nulls":4},"Neděle"]
[{"$nulls":4},"Celkový počet hodin za týden",{"$f":"SUBTOTAL(109,Srpen[Týden 1])","v":{"v":0,"d":"0.0"}},{"$f":"SUBTOTAL(109,Srpen[Přesčas])","v":{"v":0,"d":"0.0"}},{"$f":"SUBTOTAL(109,Srpen[Týden 2])","v":{"v":0,"d":"0.0"}},{"$f":"SUBTOTAL(109,Srpen[[Přesčas ]])","v":{"v":0,"d":"0.0"}},{"$f":"SUBTOTAL(109,Srpen[Týden 3])","v":{"v":0,"d":"0.0"}},{"$f":"SUBTOTAL(109,Srpen[[Přesčas   ]])","v":{"v":0,"d":"0.0"}},{"$f":"SUBTOTAL(109,Srpen[Týden 4])","v":{"v":0,"d":"0.0"}},{"$f":"SUBTOTAL(109,Srpen[[Přesčas  ]])","v":{"v":0,"d":"0.0"}},{"$f":"SUBTOTAL(109,Srpen[Týden 5])","v":{"v":0,"d":"0.0"}},{"$f":"SUBTOTAL(109,Srpen[[Přesčas    ]])","v":{"v":0,"d":"0.0"}}]
["V buňce F88 se automaticky počítá součet hodin normální pracovní doby a v buňce I88 součet přesčasových hodin za srpen. Další pokyn je v buňce A90.",{"$nulls":3},{"$f":"TEXT(DATEVALUE(Srpen[[#Headers],[Srpen]]&\" \"&YEAR(TODAY())),\"mmm.\")&\" celkem: Hodiny normální pracovní doby\"","v":"VIII. celkem: Hodiny normální pracovní doby"},{"$f":"SUM(Srpen[Týden 1],Srpen[Týden 2],Srpen[Týden 3],Srpen[Týden 4],Srpen[Týden 5])","v":{"v":0,"d":"0.0"}},{"$f":"TEXT(DATEVALUE(Srpen[[#Headers],[Srpen]]&\" \"&YEAR(TODAY())),\"mmm.\")&\" celkem: Přesčas\"","v":"VIII. celkem: Přesčas"},null,{"$f":"SUM(Srpen[Přesčas],Srpen[[Přesčas ]],Srpen[[Přesčas   ]],Srpen[[Přesčas  ]],Srpen[[Přesčas    ]])","v":{"v":0,"d":"0.0"}}]
[]
["Do tabulky pro září, která začíná v buňce E90, zadávejte hodiny normální pracovní doby a přesčasů. Další pokyn je v buňce A99.",{"$nulls":3},"Září","Týden 1","Přesčas","Týden 2","Přesčas ","Týden 3","Přesčas  ","Týden 4","Přesčas   ","Týden 5","Přesčas    "]
[{"$nulls":4},"Pondělí"]
[{"$nulls":4},"Úterý"]
[{"$nulls":4},"Středa"]
[{"$nulls":4},"Čtvrtek"]
[{"$nulls":4},"Pátek"]
[{"$nulls":4},"Sobota"]
[{"$nulls":4},"Neděle"]
[{"$nulls":4},"Celkový počet hodin za týden",{"$f":"SUBTOTAL(109,Zari[Týden 1])","v":{"v":0,"d":"0.0"}},{"$f":"SUBTOTAL(109,Zari[Přesčas])","v":{"v":0,"d":"0.0"}},{"$f":"SUBTOTAL(109,Zari[Týden 2])","v":{"v":0,"d":"0.0"}},{"$f":"SUBTOTAL(109,Zari[[Přesčas ]])","v":{"v":0,"d":"0.0"}},{"$f":"SUBTOTAL(109,Zari[Týden 3])","v":{"v":0,"d":"0.0"}},{"$f":"SUBTOTAL(109,Zari[[Přesčas  ]])","v":{"v":0,"d":"0.0"}},{"$f":"SUBTOTAL(109,Zari[Týden 4])","v":{"v":0,"d":"0.0"}},{"$f":"SUBTOTAL(109,Zari[[Přesčas   ]])","v":{"v":0,"d":"0.0"}},{"$f":"SUBTOTAL(109,Zari[Týden 5])","v":{"v":0,"d":"0.0"}},{"$f":"SUBTOTAL(109,Zari[[Přesčas    ]])","v":{"v":0,"d":"0.0"}}]
["V buňce F99 se automaticky počítá součet hodin normální pracovní doby a v buňce I99 součet přesčasových hodin za září.",{"$nulls":3},{"$f":"TEXT(DATEVALUE(Zari[[#Headers],[Září]]&\" \"&YEAR(TODAY())),\"mmm.\")&\" celkem: Hodiny normální pracovní doby\"","v":"IX. celkem: Hodiny normální pracovní doby"},{"$f":"SUM(Zari[Týden 1],Zari[Týden 2],Zari[Týden 3],Zari[Týden 4],Zari[Týden 5])","v":{"v":0,"d":"0.0"}},{"$f":"TEXT(DATEVALUE(Zari[[#Headers],[Září]]&\" \"&YEAR(TODAY())),\"mmm.\")&\" celkem: Přesčas\"","v":"IX. celkem: Přesčas"},null,{"$f":"SUM(Zari[Přesčas],Zari[[Přesčas ]],Zari[[Přesčas  ]],Zari[[Přesčas   ]],Zari[[Přesčas    ]])","v":{"v":0,"d":"0.0"}}]
["V buňce E100 je nadpis pro čtvrté čtvrtletí od října do prosince. ",{"$nulls":3},"Říjen, listopad, prosinec      Časový výkaz zaměstnance: denní, týdenní, měsíční, roční"]
["Do tabulky pro říjen, která začíná v buňce E101, zadávejte hodiny normální pracovní doby a přesčasů. Další pokyn je v buňce A110.",{"$nulls":3},"Říjen","Týden 1","Přesčas","Týden 2","Přesčas ","Týden 3","Přesčas  ","Týden 4","Přesčas   ","Týden 5","Přesčas    "]
[{"$nulls":4},"Pondělí"]
[{"$nulls":4},"Úterý"]
[{"$nulls":4},"Středa"]
[{"$nulls":4},"Čtvrtek"]
[{"$nulls":4},"Pátek"]
[{"$nulls":4},"Sobota"]
[{"$nulls":4},"Neděle"]
[{"$nulls":4},"Celkový počet hodin za týden",{"$f":"SUBTOTAL(109,Rijen[Týden 1])","v":{"v":0,"d":"0.0"}},{"$f":"SUBTOTAL(109,Rijen[Přesčas])","v":{"v":0,"d":"0.0"}},{"$f":"SUBTOTAL(109,Rijen[Týden 2])","v":{"v":0,"d":"0.0"}},{"$f":"SUBTOTAL(109,Rijen[[Přesčas ]])","v":{"v":0,"d":"0.0"}},{"$f":"SUBTOTAL(109,Rijen[Týden 3])","v":{"v":0,"d":"0.0"}},{"$f":"SUBTOTAL(109,Rijen[[Přesčas  ]])","v":{"v":0,"d":"0.0"}},{"$f":"SUBTOTAL(109,Rijen[Týden 4])","v":{"v":0,"d":"0.0"}},{"$f":"SUBTOTAL(109,Rijen[[Přesčas   ]])","v":{"v":0,"d":"0.0"}},{"$f":"SUBTOTAL(109,Rijen[Týden 5])","v":{"v":0,"d":"0.0"}},{"$f":"SUBTOTAL(109,Rijen[[Přesčas    ]])","v":{"v":0,"d":"0.0"}}]
["V buňce F110 se automaticky počítá součet hodin normální pracovní doby a v buňce I110 součet přesčasových hodin za říjen. Další pokyn je v buňce A112.",{"$nulls":3},{"$f":"TEXT(DATEVALUE(Rijen[[#Headers],[Říjen]]&\" \"&YEAR(TODAY())),\"mmm.\")&\" celkem: Hodiny normální pracovní doby\"","v":"X. celkem: Hodiny normální pracovní doby"},{"$f":"SUM(Rijen[Týden 1],Rijen[Týden 2],Rijen[Týden 3],Rijen[Týden 4],Rijen[Týden 5])","v":{"v":0,"d":"0.0"}},{"$f":"TEXT(DATEVALUE(Rijen[[#Headers],[Říjen]]&\" \"&YEAR(TODAY())),\"mmm.\")&\" celkem: Přesčas\"","v":"X. celkem: Přesčas"},null,{"$f":"SUM(Rijen[Přesčas],Rijen[[Přesčas ]],Rijen[[Přesčas  ]],Rijen[[Přesčas   ]],Rijen[[Přesčas    ]])","v":{"v":0,"d":"0.0"}}]
[]
["Do tabulky pro listopad, která začíná v buňce E112, zadávejte hodiny normální pracovní doby a přesčasů. Další pokyn je v buňce A121.",{"$nulls":3},"Listopad","Týden 1","Přesčas","Týden 2","Přesčas ","Týden 3","Přesčas  ","Týden 4","Přesčas    ","Týden 5","Přesčas     "]
[{"$nulls":4},"Pondělí"]
[{"$nulls":4},"Úterý"]
[{"$nulls":4},"Středa"]
[{"$nulls":4},"Čtvrtek"]
[{"$nulls":4},"Pátek"]
[{"$nulls":4},"Sobota"]
[{"$nulls":4},"Neděle"]
[{"$nulls":4},"Celkový počet hodin za týden",{"$f":"SUBTOTAL(109,Listopad[Týden 1])","v":{"v":0,"d":"0.0"}},{"$f":"SUBTOTAL(109,Listopad[Přesčas])","v":{"v":0,"d":"0.0"}},{"$f":"SUBTOTAL(109,Listopad[Týden 2])","v":{"v":0,"d":"0.0"}},{"$f":"SUBTOTAL(109,Listopad[[Přesčas ]])","v":{"v":0,"d":"0.0"}},{"$f":"SUBTOTAL(109,Listopad[Týden 3])","v":{"v":0,"d":"0.0"}},{"$f":"SUBTOTAL(109,Listopad[[Přesčas  ]])","v":{"v":0,"d":"0.0"}},{"$f":"SUBTOTAL(109,Listopad[Týden 4])","v":{"v":0,"d":"0.0"}},{"$f":"SUBTOTAL(109,Listopad[[Přesčas    ]])","v":{"v":0,"d":"0.0"}},{"$f":"SUBTOTAL(109,Listopad[Týden 5])","v":{"v":0,"d":"0.0"}},{"$f":"SUBTOTAL(109,Listopad[[Přesčas     ]])","v":{"v":0,"d":"0.0"}}]
["V buňce F121 se automaticky počítá součet hodin normální pracovní doby a v buňce I121 součet přesčasových hodin za listopad. Další pokyn je v buňce A123.",{"$nulls":3},{"$f":"TEXT(DATEVALUE(Listopad[[#Headers],[Listopad]]&\" \"&YEAR(TODAY())),\"mmm.\")&\" celkem: Hodiny normální pracovní doby\"","v":"XI. celkem: Hodiny normální pracovní doby"},{"$f":"SUM(Listopad[Týden 1],Listopad[Týden 2],Listopad[Týden 3],Listopad[Týden 4],Listopad[Týden 5])","v":{"v":0,"d":"0.0"}},{"$f":"TEXT(DATEVALUE(Listopad[[#Headers],[Listopad]]&\" \"&YEAR(TODAY())),\"mmm.\")&\" celkem: Přesčas\"","v":"XI. celkem: Přesčas"},null,{"$f":"SUM(Listopad[Přesčas],Listopad[[Přesčas ]],Listopad[[Přesčas  ]],Listopad[[Přesčas    ]],Listopad[[Přesčas     ]])","v":{"v":0,"d":"0.0"}}]
[]
["Do tabulky pro prosinec, která začíná v buňce E123, zadávejte hodiny normální pracovní doby a přesčasů. Další pokyn je v buňce A132.",{"$nulls":3},"Prosinec","Týden 1","Přesčas","Týden 2","Přesčas ","Týden 3","Přesčas  ","Týden 4","Přesčas   ","Týden 5","Přesčas    "]
[{"$nulls":4},"Pondělí"]
[{"$nulls":4},"Úterý"]
[{"$nulls":4},"Středa"]
[{"$nulls":4},"Čtvrtek"]
[{"$nulls":4},"Pátek"]
[{"$nulls":4},"Sobota"]
[{"$nulls":4},"Neděle"]
[{"$nulls":4},"Celkový počet hodin za týden",{"$f":"SUBTOTAL(109,Prosinec[Týden 1])","v":{"v":0,"d":"0.0"}},{"$f":"SUBTOTAL(109,Prosinec[Přesčas])","v":{"v":0,"d":"0.0"}},{"$f":"SUBTOTAL(109,Prosinec[Týden 2])","v":{"v":0,"d":"0.0"}},{"$f":"SUBTOTAL(109,Prosinec[[Přesčas ]])","v":{"v":0,"d":"0.0"}},{"$f":"SUBTOTAL(109,Prosinec[Týden 3])","v":{"v":0,"d":"0.0"}},{"$f":"SUBTOTAL(109,Prosinec[[Přesčas  ]])","v":{"v":0,"d":"0.0"}},{"$f":"SUBTOTAL(109,Prosinec[Týden 4])","v":{"v":0,"d":"0.0"}},{"$f":"SUBTOTAL(109,Prosinec[[Přesčas   ]])","v":{"v":0,"d":"0.0"}},{"$f":"SUBTOTAL(109,Prosinec[Týden 5])","v":{"v":0,"d":"0.0"}},{"$f":"SUBTOTAL(109,Prosinec[[Přesčas    ]])","v":{"v":0,"d":"0.0"}}]
["V buňce F132 se automaticky počítá součet hodin normální pracovní doby a v buňce I132 součet přesčasových hodin za prosinec.",{"$nulls":3},{"$f":"TEXT(DATEVALUE(Prosinec[[#Headers],[Prosinec]]&\" \"&YEAR(TODAY())),\"mmm.\")&\" celkem: Hodiny normální pracovní doby\"","v":"XII. celkem: Hodiny normální pracovní doby"},{"$f":"SUM(Prosinec[Týden 1],Prosinec[Týden 2],Prosinec[Týden 3],Prosinec[Týden 4],Prosinec[Týden 5])","v":{"v":0,"d":"0.0"}},{"$f":"TEXT(DATEVALUE(Prosinec[[#Headers],[Prosinec]]&\" \"&YEAR(TODAY())),\"mmm.\")&\" celkem: Přesčas\"","v":"XII. celkem: Přesčas"},null,{"$f":"SUM(G124:G130,I124:I130,K124:K130,M124:M130,O124:O130)","v":{"v":0,"d":"0.0"}}]